Cogmind - Beta 13 @@@ ROGUE MODE // 2024.06.01 @ 21:29:45 Player: .fresh Result: Destroyed by H-55 Commando with Gauss Rifle Performance ------------- Evolutions (2) 1000 Regions Visited (7) 1400 Robots Destroyed (68) 340 Value Destroyed (1639) 1639 Prototype IDs (27) 540 Alien Tech Used (0) 0 Bonus (300) 300 TOTAL SCORE: 5219 Bonus ------- Aligned with FarCom 300 Cogmind --------- Core Integrity 0/550 Matter 12/300 Energy 10/100 System Corruption 2% Temperature Cool (27) Movement Flying (40) Location -8/Materials Parts ------- > --- POWER (1) -------- (None) > --- PROPULSION (4) --- Improved Flight Unit > --- UTILITY (4) ------ (None) > --- WEAPON (2) ------- (None) > --- INVENTORY (5) ---- Improved Flight Unit Improved Flight Unit Cloak of Protection Bore Cannon Rocket Launcher Peak State ------------ > --- POWER ------------ Ion Engine > --- PROPULSION ------- Light Treads Potential Leg Potential Leg > --- UTILITY ---------- Large Storage Unit Superbattery Seismic Detector > --- WEAPON ----------- Light Cannon Light Cannon > --- INVENTORY -------- Light Treads Light Treads Improved Flight Unit Improved Flight Unit Improved Flight Unit Improved Flight Unit Cooling System Medium Storage Unit Heavy Assault Rifle Light Cannon Bore Cannon Grenade Launcher Rocket Launcher Datajack Hammer [Rating: 39] Favorites ----------- Power Ion Engine Engine Ion Engine Power Core Nuclear Core Propulsion Light Treads Treads Light Treads Leg Potential Leg Wheel Wheel Flight Unit Improved Flight Unit Utility Seismic Detector Device Seismic Detector Storage Large Storage Unit Processor Advanced Targeting Computer Protection Medium Armor Plating Weapon Light Cannon Ballistic Gun Heavy Assault Rifle Ballistic Cannon Light Cannon Launcher Grenade Launcher Impact Weapon Hammer Build | -11 -10 -10 -9 -9 -9 -8 -8 ------- Run | Yrd Mat Min Mat Min Exi Min Mat Slots Evolved 4 | . . . 2 . . . 2 Power . | . . . . . . . . Propulsion 2 | . . . 1 . . . 1 Utility 2 | . . . 1 . . . 1 Weapon . | . . . . . . . . Parts Attached 60 | 3 8 5 13 5 7 . 19 Power 4 | . 1 1 . . . . 2 Engine 3 | . 1 1 . . . . 1 Core 1 | . . . . . . . 1 Reactor . | . . . . . . . . Propulsion 21 | 2 1 4 6 1 4 . 3 Treads 11 | 1 . 3 3 1 2 . 1 Leg 2 | . . . . . 2 . . Wheel 7 | 1 1 1 3 . . . 1 Hover . | . . . . . . . . Flight 1 | . . . . . . . 1 Utility 12 | 1 2 . 2 2 3 . 2 Device 5 | 1 1 . . 1 1 . 1 Storage 2 | . 1 . . . 1 . . Processor 1 | . . . . . . . 1 Hackware . | . . . . . . . . Protection 4 | . . . 2 1 1 . . Artifact . | . . . . . . . . Weapon 23 | . 4 . 5 2 . . 12 Energy Gun . | . . . . . . . . Energy Cannon . | . . . . . . . . Ballistic Gun 2 | . 2 . . . . . . Ballistic Cannon 12 | . 2 . 3 1 . . 6 Launcher 6 | . . . 2 1 . . 3 Special Weapon . | . . . . . . . . Impact Weapon 3 | . . . . . . . 3 Slashing Weapon . | . . . . . . . . Piercing Weapon . | . . . . . . . . Special Melee Weapon . | . . . . . . . . Unidentified Prototypes . | . . . . . . . . Parts Lost 13 | . 1 . . 1 . . 11 Power 2 | . 1 . . . . . 1 Propulsion 4 | . . . . . . . 4 Utility 4 | . . . . 1 . . 3 Weapon 3 | . . . . . . . 3 Highest Loss Streak 10 | . 1 . . 1 . . 10 To Critical Strikes . | . . . . . . . . Average Slot Usage (%) 98 | . 99 100 99 100 99 100 91 Engine 10 | . 14 14 11 11 11 11 2 Treads 23 | . 14 26 22 22 24 33 29 Wheel 7 | . 13 2 11 11 7 . 2 Device 11 | . 14 14 11 10 11 11 9 Storage 11 | . 14 14 11 11 11 11 9 Processor 1 | . . . . . . . 8 Protection 6 | . . . 11 11 10 11 7 Ballistic Gun 3 | . 16 . . . . . . Ballistic Cannon 19 | . 11 28 21 21 22 22 13 Naked Turns . | . . . . . . . . Heaviest Build 47 | 14 32 32 39 39 39 39 47 Greatest Support 80 | 20 10 40 10 10 60 60 80 Greatest Overweight (x) 7 | . 3 2 3 3 3 . 7 Average Overweight (x) 1 | . 2 . 3 3 2 . 1 Largest Inventory Capacity 15 | 8 15 15 15 15 15 15 15 Average Capacity 14 | 8 14 15 15 15 15 15 14 Most Carried 15 | 7 15 15 15 15 15 15 15 Average Carried 14 | 6 12 14 14 14 14 15 14 Final Capacity 15 | 8 15 15 15 15 15 15 5 Final Carried 15 | 6 15 15 15 15 15 15 5 Class Distribution -------------------- 71% | Mutant 28% | Scavenger-Mutant Dominant Class ---------------- Mutant | -10/Materials Mutant | -10/Mines Scavenger-Mutant | -9/Materials Scavenger-Mutant | -9/Mines Mutant | -9/Exiles Mutant | -8/Mines Mutant | -8/Materials Resources | -11 -10 -10 -9 -9 -9 -8 -8 ----------- Run | Yrd Mat Min Mat Min Exi Min Mat Matter Collected 1473 | 274 337 84 394 27 . . 357 Remotely . | . . . . . . . . Salvage Created 1885 | 122 527 89 554 26 . . 567 Parts 130 | 9 43 8 37 3 . . 30 Haulers Intercepted 5 | . 2 . 2 . . . 1 Recyclers Shooed 1 | . 1 . . . . . . Parts Field Recycled . | . . . . . . . . Retrieved Matter . | . . . . . . . . Parts Self-Destructed . | . . . . . . . . Prevented . | . . . . . . . . Kills | -11 -10 -10 -9 -9 -9 -8 -8 ------- Run | Yrd Mat Min Mat Min Exi Min Mat Combat Hostiles Destroyed 53 | . 13 2 20 3 . . 15 Melee 3 | . . . . . . . 3 Guns 8 | . 8 . . . . . . Cannons 22 | . 5 2 12 . . . 3 AOE 17 | . . . 8 3 . . 6 Classes Destroyed 11 | 2 4 1 2 . . . 2 Worker 2 | . . . 2 . . . . Builder 2 | . . . . . . . 2 Tunneler 3 | 2 . . . . . . 1 Hauler 5 | . 2 . 2 . . . 1 Recycler 2 | 1 . . . . . . 1 Watcher 1 | . 1 . . . . . . Swarmer 20 | . 3 . 8 3 . . 6 Grunt 24 | . 10 . 8 . . . 6 Brawler 1 | . . . 1 . . . . Duelist 1 | . . . . . . . 1 Sentry 7 | . . 2 3 . . . 2 Best Kill Streak 8 | 3 4 2 6 3 . . 8 Combat Bots Only 7 | . 4 2 5 3 . . 7 Max Kills in Single Turn 5 | 1 1 1 5 3 . . 3 Gunslinging . | . . . . . . . . Exploded 4 | . . . 4 3 . . 3 Melee 1 | . . . . . . . 1 Uniques/NPCs Destroyed . | . . . . . . . . Combat | -11 -10 -10 -9 -9 -9 -8 -8 -------- Run | Yrd Mat Min Mat Min Exi Min Mat Hostile Shots Fired 384 | . 54 8 78 7 . 1 236 Missed 115 | . 16 2 25 1 . 1 70 Damage Taken 3656 | . 446 85 661 85 . . 2379 Core 844 | . 155 14 113 . . . 562 Absorbed by Shields . | . . . . . . . . Regen/Repaired (Parts) 113 | . 35 . 78 . . . . Core Remaining (%) 67 | 100 . 32 . . . 71 . Volleys Fired 139 | 11 48 3 38 3 . . 36 Largest 2 | 2 2 2 2 2 . . 2 Hottest 96 | 40 70 70 70 70 . . 96 Shots Fired 266 | 22 96 6 72 5 . . 65 Gun 96 | 22 74 . . . . . . Cannon 158 | . 22 6 68 4 . . 58 Launcher 12 | . . . 4 1 . . 7 Special . | . . . . . . . . Kinetic 254 | 22 96 6 68 4 . . 58 Thermal . | . . . . . . . . Explosive 12 | . . . 4 1 . . 7 Electromagnetic . | . . . . . . . . Robot Hit Streak 13 | 6 10 6 13 5 . . 10 Robot Miss Streak 4 | 4 4 . 3 2 . . 4 Penetration Max . | . . . . . . . . Secondary Targets . | . . . . . . . . Shots Hit Robots 188 | 13 62 5 43 3 . . 62 Core Hits 85 | 5 23 3 27 3 . . 24 Critical Kills 1 | . . . . . . . 1 Critical Parts Destroyed 2 | . . . . . . . 2 Critical Strikes 5 | . . . 1 . . . 4 Blast 2 | . . . 1 . . . 1 Smash 3 | . . . . . . . 3 Melee Attacks 40 | . . . . . . . 40 Impact 40 | . . . . . . . 40 Slashing . | . . . . . . . . Piercing . | . . . . . . . . Sneak Attacks 1 | . . . . . . . 1 Combat Hostiles . | . . . . . . . . Follow-up Attacks . | . . . . . . . . Damage Inflicted 4408 | 147 875 89 1200 160 . . 1937 Guns 786 | 147 639 . . . . . . Cannons 2029 | . 236 89 776 39 . . 889 Explosions 1077 | . . . 424 121 . . 532 Melee 505 | . . . . . . . 505 Ramming 11 | . . . . . . . 11 Kinetic 2815 | 147 875 89 776 39 . . 889 Thermal . | . . . . . . . . Explosive 1077 | . . . 424 121 . . 532 Electromagnetic . | . . . . . . . . Impact 505 | . . . . . . . 505 Slashing . | . . . . . . . . Piercing . | . . . . . . . . Highest Corruption 2 | . . . . . . . 2 Average Corruption 2 | . . . . . . . 2 Corruption Purged . | . . . . . . . . Corruption Blocked . | . . . . . . . . Effects 2 | . . . . . . . 2 Message Errors 1 | . . . . . . . 1 Parts Rejected 1 | . . . . . . . 1 Overload Shots . | . . . . . . . . Overflow Damage 140 | . . . 6 . . . 134 Projectiles 6 | . . . 6 . . . . Explosions 10 | . . . . . . . 10 Melee 124 | . . . . . . . 124 Knockbacks 12 | . 3 . 4 1 . . 4 Impact 1 | . . . . . . . 1 Kinetic 11 | . 3 . 4 1 . . 3 Secondary . | . . . . . . . . Self-Inflicted Damage 93 | . . . 13 39 . . 41 Shots 3 | . . . 1 1 . . 1 Rammed 3 | . . . . . . . 3 Targets Rammed 3 | . . . . . . . 3 Kicked . | . . . . . . . . Crushed . | . . . . . . . . Highest Temperature 234 | . 103 45 108 18 . . 234 Average Temperature 43 | . 32 24 43 10 . . 52 Received Heat Transfer 1362 | . 201 27 288 . . . 846 Effects 1 | . . . . . . . 1 Energy Bleed 1 | . . . . . . . 1 Siege Activations . | . . . . . . . . Robots Corrupted . | . . . . . . . . Combat Hostiles . | . . . . . . . . Parts Fried 5 | . . . . . . . 5 Impact Corruptions 6 | . . . . . . . 6 Robots Melted . | . . . . . . . . Combat Hostiles . | . . . . . . . . Parts Melted . | . . . . . . . . Heat Transferred . | . . . . . . . . Parts Sabotaged . | . . . . . . . . Parts Stolen . | . . . . . . . . Parts Stripped . | . . . . . . . . Power Chain Reactions . | . . . . . . . . Alert | -11 -10 -10 -9 -9 -9 -8 -8 ------- Run | Yrd Mat Min Mat Min Exi Min Mat Peak Influence 396 | 15 219 81 396 165 . . 285 Initial 90 | . 9 16 1 90 . . . Average 79 | 4 109 33 116 96 . . 100 Maximum Alert Level 1 | . 1 . 1 . . . 1 Low Security (%) 94 | 100 99 100 83 100 . 100 84 Level 1 5 | . . . 16 . . . 15 Level 2 . | . . . . . . . . Level 3 . | . . . . . . . . Level 4 . | . . . . . . . . Level 5 . | . . . . . . . . High Security . | . . . . . . . . Max Security . | . . . . . . . . Squads Dispatched 5 | . 2 . 3 . . . . Investigation 1 | . 1 . . . . . . Extermination . | . . . . . . . . Reinforcement 4 | . 1 . 3 . . . . Assault . | . . . . . . . . Garrison . | . . . . . . . . Intercept . | . . . . . . . . Searches Triggered . | . . . . . . . . Construction Impeded 1 | . . . 1 . . . . Haulers Reinforced . | . . . . . . . . Active Scanning Responses . | . . . . . . . . Cargo Convoy Interrupts . | . . . . . . . . Stealth | -11 -10 -10 -9 -9 -9 -8 -8 --------- Run | Yrd Mat Min Mat Min Exi Min Mat Distress Signals 10 | . 2 . 3 . . . 5 Communications Jammed . | . . . . . . . . Distress Signals . | . . . . . . . . Times Spotted 95 | . 25 2 32 4 . 2 30 Peak Tracking Total 8 | . 4 2 5 4 . 4 8 Tactical Retreats 4 | . 2 . 1 . . . 1 Traps | -11 -10 -10 -9 -9 -9 -8 -8 ------- Run | Yrd Mat Min Mat Min Exi Min Mat Traps Triggered 1 | . 1 . . . . . . Indirectly . | . . . . . . . . Trap Hack Attempts . | . . . . . . . . Triggered . | . . . . . . . . Disarmed . | . . . . . . . . Reprogrammed . | . . . . . . . . Reused . | . . . . . . . . Traps Extracted . | . . . . . . . . Installed . | . . . . . . . . Triggered 1 | . . 1 . . . . . Machines | -11 -10 -10 -9 -9 -9 -8 -8 ---------- Run | Yrd Mat Min Mat Min Exi Min Mat Machines Disabled 5 | . . . 3 . . . 2 Max in Single Turn 2 | . . . 2 . . . 1 Machines Repaired . | . . . . . . . . Machines Dismantled . | . . . . . . . . Machines Sabotaged . | . . . . . . . . Overloaded Fab Kills . | . . . . . . . . Hacking | -11 -10 -10 -9 -9 -9 -8 -8 --------- Run | Yrd Mat Min Mat Min Exi Min Mat Machines Accessed 19 | . 8 1 4 . 5 . 1 Terminals 11 | . 6 1 3 . . . 1 Fabricators . | . . . . . . . . Repair Stations 2 | . 1 . 1 . . . . Recycling Units 1 | . 1 . . . . . . Scanalyzers . | . . . . . . . . Garrison Access . | . . . . . . . . Total Hacks 79 | . 19 3 12 . 44 . 1 Successful 61 | . 10 1 6 . 44 . . Failed 18 | . 9 2 6 . . . 1 Catastrophic 5 | . 1 . 3 . . . 1 Database Lockouts . | . . . . . . . . Manual 14 | . 10 . 3 . 1 . . Terminals 28 | . 16 3 8 . . . 1 Fabricators . | . . . . . . . . Repair Stations 6 | . 2 . 4 . . . . Recycling Units 1 | . 1 . . . . . . Scanalyzers . | . . . . . . . . Garrison Access . | . . . . . . . . Terminal Hacks 52 | . 5 1 2 . 44 . . Record 43 | . . . . . 43 . . Part Schematic 2 | . 2 . . . . . . Prototype ID Bank 2 | . 2 . . . . . . Unreport Threat 1 | . . . 1 . . . . Recall Reinforcements 1 | . . . 1 . . . . Hauler Manifests 1 | . 1 . . . . . . Zone Layout 1 | . . 1 . . . . . Derelict Proto ID Bank 1 | . . . . . 1 . . Fabricator Hacks . | . . . . . . . . Repair Station Hacks 5 | . 2 . 3 . . . . Scan Component 3 | . 1 . 2 . . . . Repair 2 | . 1 . 1 . . . . Recycling Unit Hacks . | . . . . . . . . Scanalyzer . | . . . . . . . . Garrison Access Hacks . | . . . . . . . . Unauthorized Hacks 4 | . 3 . 1 . . . . Terminals 3 | . 2 . 1 . . . . Botnet 3 | . 2 . 1 . . . . Fabricators . | . . . . . . . . Repair Stations . | . . . . . . . . Recycling Units 1 | . 1 . . . . . . Tunnel 1 | . 1 . . . . . . Scanalyzers . | . . . . . . . . Garrison Access . | . . . . . . . . Data Cores Recovered . | . . . . . . . . Used . | . . . . . . . . Hacking Detections 10 | . 5 . 4 . . . 1 Full Trace Events . | . . . . . . . . Feedback Events . | . . . . . . . . Feedback Blocked . | . . . . . . . . Robot Schematics Acquired . | . . . . . . . . Robots Built . | . . . . . . . . Authchips . | . . . . . . . . Time . | . . . . . . . . Total Robot Build Rating . | . . . . . . . . Part Schematics Acquired 2 | . 2 . . . . . . Parts Built . | . . . . . . . . Authchips . | . . . . . . . . Time . | . . . . . . . . Total Part Build Rating . | . . . . . . . . Parts Repaired 2 | . 1 . 1 . . . . Time 62 | . 26 . 36 . . . . Parts Recycled . | . . . . . . . . Recycled Matter . | . . . . . . . . Retrieved Matter . | . . . . . . . . Retrieved Components . | . . . . . . . . Parts Scanalyzed . | . . . . . . . . Part Schematics Acquired . | . . . . . . . . Parts Damaged . | . . . . . . . . Bothacking | -11 -10 -10 -9 -9 -9 -8 -8 ------------ Run | Yrd Mat Min Mat Min Exi Min Mat Used RIF Installer . | . . . . . . . . Robots Hacked . | . . . . . . . . Non-combat . | . . . . . . . . Combat . | . . . . . . . . Robot Hacks Applied . | . . . . . . . . Relay Couplers Released . | . . . . . . . . Fabnet Peak Effective % . | . . . . . . . . Robots Rewired . | . . . . . . . . Allies Hacked . | . . . . . . . . Hacks Repelled . | . . . . . . . . Allies | -11 -10 -10 -9 -9 -9 -8 -8 -------- Run | Yrd Mat Min Mat Min Exi Min Mat Total Allies . | . . . . . . . . Largest Group . | . . . . . . . . Highest-Rated Group . | . . . . . . . . Highest-Rated Ally . | . . . . . . . . Total Orders . | . . . . . . . . Ally Attacks . | . . . . . . . . Total Damage . | . . . . . . . . Kills . | . . . . . . . . Allies Corrupted . | . . . . . . . . Allies Melted . | . . . . . . . . Intel | -11 -10 -10 -9 -9 -9 -8 -8 ------- Run | Yrd Mat Min Mat Min Exi Min Mat Robot Analysis Total . | . . . . . . . . Derelict Logs Recovered 3 | . . 1 . 2 . . . Drone Launches . | . . . . . . . . Drone Recoveries . | . . . . . . . . Exploration | -11 -10 -10 -9 -9 -9 -8 -8 ------------- Run | Yrd Mat Min Mat Min Exi Min Mat Turns Passed 6057 | 93 1235 762 1026 680 671 766 824 Spaces Moved 3799 | 36 830 480 635 513 496 476 333 Core 6 | . . . . . . . 6 Treads 1249 | 36 . 388 . . 112 476 237 Legs 8 | . . . . . 8 . . Wheels 2535 | . 830 92 635 513 376 . 89 Hover . | . . . . . . . . Flight 1 | . . . . . . . 1 Fastest Speed 40 | 160 95 110 125 125 90 160 40 Average Speed 134 | 160 112 150 125 125 132 160 157 Slowest Speed 400 | 160 125 160 125 125 170 160 400 Overloaded Moves . | . . . . . . . . Propulsion Burnouts . | . . . . . . . . Robots Hopped . | . . . . . . . . Cave-ins Triggered . | . . . . . . . . Exploration Rate (%) 64 | 3 97 90 41 97 93 74 21 Regions Visited 7 Branch Regions 4 Pre-discovered Areas 4 | . 1 1 . 1 1 . . Known Exits Taken 2 | . . . 1 . . 1 . Unknown Exits Taken 5 | 1 1 1 . 1 1 . . Scrap Searched 2 | . . 1 . 1 . . . Spaces Dug 5 | . . . . . . . 5 Terrain Destroyed 77 | . . . 24 10 . . 43 Melee 5 | . . . . . . . 5 Projectile 2 | . . . . . . . 2 AOE 70 | . . . 24 10 . . 36 Terrain Rammed . | . . . . . . . . Walls Destroyed . | . . . . . . . . Machines Disabled . | . . . . . . . . Actions | -11 -10 -10 -9 -9 -9 -8 -8 --------- Run | Yrd Mat Min Mat Min Exi Min Mat Total 4435 | 51 1039 517 800 546 511 481 490 Wait 317 | . 135 17 94 22 . 6 43 Move 3792 | 35 829 479 634 512 495 475 333 Hop . | . . . . . . . . Pick Up 35 | 1 11 6 9 2 2 . 4 Fast Attach 14 | 1 3 . 1 . 5 . 4 Attach 11 | . 1 . 2 1 2 . 5 Detach 2 | . 1 . . . . . 1 Swap 35 | 2 4 5 10 4 . . 10 Drop 47 | 1 7 7 12 2 7 . 11 Fire 139 | 11 48 3 38 3 . . 36 Melee 40 | . . . . . . . 40 Ram 2 | . . . . . . . 2 Kick . | . . . . . . . . Crush 1 | . . . . . . . 1 Escape Stasis . | . . . . . . . . Rewire . | . . . . . . . . Trap . | . . . . . . . . Miscellaneous . | . . . . . . . . Route ------- -11/Scrapyard -10/Materials (discovered 4 exits: *Mat x3 / *Min) -10/Mines (discovered 2 exits: *Mat x2) -9/Materials (discovered 3 exits: *Mat x2 / *Min) -9/Mines (discovered 3 exits: *Mat x2 / *Exi) -9/Exiles (discovered 2 exits: [*Min x2]) -8/Mines -8/Materials (discovered 1 exit: [*Sto]) History --------- Turn | Location | Event 13 | -11/Scrapyard | Discovered new exit (range 3) 94 | -11/Scrapyard | Entered Materials 223 | -10/Materials | Discovered new exit (range 13) 288 | -10/Materials | Discovered new exit (range 16) 309 | -10/Materials | Build established: Mutant 313 | -10/Materials | Discovered new exit (range 15) 616 | -10/Materials | Core integrity fell below 50% 775 | -10/Materials | Discovered new exit (range 16) 1298 | -10/Materials | Repaired Wheel 1329 | -10/Materials | Entered Mines 1340 | -10/Mines | Learned location of Storage (-8) 1872 | -10/Mines | Learned 4 Materials zone layouts 1999 | -10/Mines | Discovered new exit (range 4) 2059 | -10/Mines | Discovered new exit (range 6) 2091 | -10/Mines | Entered Materials 2091 | -9/Materials | Evolved 2 slots: Propulsion x1, Utility x1 2092 | -9/Materials | Identified exit to Mines 2092 | -9/Materials | Identified exit to Materials 2256 | -9/Materials | Repaired Broken Lgt. Cannon 2420 | -9/Materials | Build established: Scavenger-Mutant 2790 | -9/Materials | Discovered exit to Materials (range 15) 3117 | -9/Materials | Entered Mines 3152 | -9/Mines | A weapon hastily lodged in a ceiling crevice suddenly fell to the ground 3166 | -9/Mines | Deemed a non-threat by the Exiles lab entrance 3166 | -9/Mines | Discovered new exit (range 5) 3314 | -9/Mines | Discovered exit to Materials (range 5) 3332 | -9/Mines | Met a Derelict bent on vengeance 3378 | -9/Mines | Learned Materials machine intel 3394 | -9/Mines | Discovered exit to Materials (range 8) 3485 | -9/Mines | Learned location of Recycling (-8) 3660 | -9/Mines | Received a Rocket Launcher from a helpful Derelict 3797 | -9/Mines | Entered Exiles 3814 | -9/Exiles | Discovered new exit (range 15) 3827 | -9/Exiles | Met 8R-AWN 3849 | -9/Exiles | Met EX-HEX 3913 | -9/Exiles | Build established: Mutant 3939 | -9/Exiles | Met EX-DEC 3962 | -9/Exiles | Visited The Gauntlet 4129 | -9/Exiles | Learned location of Zion (-7) 4180 | -9/Exiles | Met EX-BIN 4205 | -9/Exiles | Aligned with FarCom system 4206 | -9/Exiles | Given EX-Vault access code 4256 | -9/Exiles | Opened EX-Vault 4269 | -9/Exiles | Found Potential Leg 4272 | -9/Exiles | Found Potential Leg 4275 | -9/Exiles | Found Superbattery 4279 | -9/Exiles | Found Cloak of Protection 4327 | -9/Exiles | Warned to stay clear of 0b10 Research branches 4446 | -9/Exiles | Discovered new exit (range 12) 4468 | -9/Exiles | Left Exiles lab with Cloak of Protection 4468 | -9/Exiles | Entered Mines 5226 | -8/Mines | Discovered exit to Materials (range 6) 5234 | -8/Mines | Entered Materials 5234 | -8/Materials | Evolved 2 slots: Propulsion x1, Utility x1 5235 | -8/Materials | Loaded intel: 55 machine locations 5458 | -8/Materials | Discovered new exit (range 14) 5967 | -8/Materials | Destroyed 7 combat bots 6005 | -8/Materials | Core integrity fell below 50% 6041 | -8/Materials | Core integrity fell below 20% 6058 | -8/Materials | Destroyed by H-55 Commando with Gauss Rifle Last Messages --------------- effect. 06028_ G-47 Trooper system terminally corrupted. 06028_ K-01 Serf collects debris. 06028_ Slug penetrates Wall. 06031_ K-01 Serf collects debris. 06031_ Slug penetrates Wall. 06037_ K-01 Serf collects debris. 06038_ Acquired 16 matter. 06045_ Slug penetrates Wall. 06046_ Seismic Detector destroyed. 06048_ System corrupted: Hammer rejected. 06048_ Slug penetrates Wall. 06051_ Slammed into Y-45 Defender. 06055_ Dropped Lrg. Storage Unit. 06055_ Slug penetrates Wall. 06056_ Dropped Adv. Assault Cannon. 06057_ Dropped Cooling System. 06057_ Acquired Imp. Flight Unit. 06058_ Critical hit (Burn: +37). 06058_ Slug penetrates Wall. Map ----- +----------------------------------------------------+ | # """ #????????????????"""?????????????????????? | | # #???????????????"""""????????????????????? | | ###########?????????????"""""????????????????????? | | ##### #?????????????"""""????????????????????? | | #??????????????"""?????????????????????? | | = #??????????????????????????????????????? | | #??????????????????????????????????????? | | ##### #??????????????????????????????????????? | | ????## #################???????????????????????? | | ?????# ## """ ##== !!#???????????????????????? | | ""???# ## """ ##==][!!#???????????????????????? | | """??# ## """ ## []] #???????????????????????? | | ""???# ## ###### ##?####??????????????????? | | ?????# ##= #????# #? ??????????????????? | | ????## ## ?????## # """ ??????????????????? | | ????# ###+######### # """""??????????????????? | | ????# ** %# """""??????????????????? | | ????# < =* % %!+%"""""??????????????????? | | ????# %#| """ ?????????????????? | | ????# ############### #???????????????? | | ??#####+#########????#### #???????????????? | | ??# ] #????????? #???"""?????????? | | ??# """ """ #??############+##???"""?????????? | | ??# """ """ "" #?## [[ ! #??#????"""?????????? | | ??# """ """ S"" #?# [[ ![ #???????????????????? | | ??# """ """ "" #??# [ @]k #???????????????????? | | ??# !##?# [//!Y]#???????????????????? | | ??#########################/## ???????????? | | ?????# ![ %%= %/ w=hw ???????????? | | ?????# ![ % % !""######### #???????????????? | | ?????#! ![ [ !%% ###????????? ?????????????????? | | ?????# !% #???????????? #???????????????? | | ?????# ! %* #?????????????#???????????????? | | ?# # #?????????????????????????????? | | ?# #####+######/##?????????????????????????????? | | ?# = = =% #??????????????????????????????? | | ?# !%= * =% #???????????????????????????? | | # ! = * #????????????"""???????????? | | # %[ ?????????"""???????????? | | "" ????????"""???????????? | | " # [???????????????????????? | | " ##### [???????????????????????? | | | #?????#####???????????????????????? | | ## * ?????????????????????????????????? | | ?# ############????????????????????????????????? | | ?# ????????????????????????????????????????????? | | ?# ?????????????????????????????????????????????? | | ????????????"""??????????????????????????????????? | | ????????????"""??????????????????????????????????? | | ????????????"""??????????????????????????????????? | +----------------------------------------------------+ Best States ------------- Heat Dissipation 31 Energy Generation 14 Energy Capacity 265 Matter Stores 300 Matter Capacity 300 Sight Range 16 Terrain Scan Density 10 Cloak Strength 5 Armor Coverage 450 Evasion (%) 47 Targeting Accuracy 8 Recoil Reduction 4 Item Schematics ----------------- Lrg. Storage Unit | -10/Materials | Hacked Med. Storage Unit | -10/Materials | Hacked Robot Schematics ------------------ None Fabricated ------------ Nothing Alien Tech Used ----------------- None Achievements -------------- None Challenges ------------ None Game ------ Seed NeutrinoEnhancedShielding Manual? 0 Play Time 00:56:24 Cumulative 95.2 hours Start 2024.06.01 @ 20:10:58 End 2024.06.01 @ 21:29:45 Sessions 3 Manual Loads 0 Difficulty Rogue Special Mode None Game No. 48 Rogue 48 Adventurer 0 Explorer 0 Win Type - Total 3 Types 2/0/0/1/0/0/0/0/0 Lore% 55 Gallery% 54 Achievement% 52 Wizard Run 0 Options --------- Layout 2 ASCII 0 Keyboard 0 Movement Numpad Keybinds 0 Fullscreen 2 Font 24/Smallcaps Map View 50x44 Zoom Use 0% Tactical HUD 1 Map Filters NONE Filters NONE Steam 1 RUN: a9841a22-1499-4855-a17b-7385ef1abb36